[Event "44th Chess Olympiad Women 2022"]
[Site "Chennai"]
[Date "2022.08.09"]
[Round "11.40"]
[White "Al Maamari, Wafia Darwish"]
[Black "Suleiman Azumi Ayisha"]
[Result "1-0"]
[ECO "B82"]
[WhiteElo "1841"]
[BlackElo "1833"]
[Annotator "NA COMBH"]
[PlyCount "85"]
[EventDate "2022.07.29"]
[EventType "team-tourn"]
[EventCountry "IND"]
[SourceTitle "playchess.com"]
[Source "ChessBase"]
[SourceQuality "1"]
[WhiteTeam "United Arab Emirates"]
[BlackTeam "Nigeria"]
[WhiteTeamCountry "UAE"]
[BlackTeamCountry "NGR"]
[TimeControl "40/5400+30:1800+30"]

1. e4 {[%emt 0:00:07]} c5 {[%emt 0:00:12]} 2. Nf3 {[%emt 0:00:05]} d6 {[%emt 0:00:12]} 3. d4 {[%emt 0:00:04]} cxd4 {[%emt 0:00:21]} 4. Nxd4 {[%emt 0:00:06]} Nf6 {[%emt 0:00:01]} 5. Nc3 {[%emt 0:00:08]} a6 {[%emt 0:00:20]} 6. f4 {[%emt 0:00:16]} e6 {[%emt 0:02:14]} 7. Qf3 {[%emt 0:00:29]} Qc7 {[%emt 0:04:38]} 8. g4 {[%emt 0:01:21]} b5 {[%emt 0:08:20]} 9. a3 {[%emt 0:02:36]} Be7 {[%emt 0:05:20]} 10. g5 {[%emt 0:03:54]} Nfd7 {[%emt 0:00:27]} 11. h4 {[%emt 0:03:19]} Bb7 {[%emt 0:04:12]} 12. h5 {[%emt 0:07:30]} Nc6 {[%emt 0:00:02]} 13. Be3 {[%emt 0:07:28]} Nxd4 {[%emt 0:02:36]} 14. Bxd4 {[%emt 0:00:47]} e5 {[%emt 0:01:07]} 15. Be3 {[%emt 0:01:39]} f5 {[%emt 0:01:09]} 16. Bd3 {[%emt 0:05:39]} d5 {[%emt 0:01:19]} 17. h6 {[%emt 0:06:55]} g6 {[%emt 0:03:01]} 18. Nxd5 {[%emt 0:00:47]} Bxd5 {[%emt 0:02:09]} 19. exd5 {[%emt 0:04:30]} e4 {[%emt 0:00:01]} 20. Qg2 {[%emt 0:02:33]} Bd6 {[%emt 0:10:22]} 21. Bf1 {[%emt 0:18:56]} Bxf4 {[%emt 0:00:33]} 22. Bd4 {[%emt 0:02:53]} Rf8 {[%emt 0:07:11]} 23. Rh3 {[%emt 0:03:02]} Ne5 {[%emt 0:03:17]} 24. Be2 {[%emt 0:04:05]} Nf7 {[%emt 0:11:34]} 25. Rc3 {[%emt 0:06:45]} Qd7 {[%emt 0:01:08]} 26. Bf6 {[%emt 0:02:13]} Nxh6 {[%emt 0:07:05]} 27. Qf2 {[%emt 0:02:17]} Bd6 {[%emt 0:01:55]} 28. O-O-O {[%emt 0:04:42]} Ng8 {[%emt 0:01:39]} 29. Bh8 {[%emt 0:00:47]} Rc8 {[%emt 0:03:56]} 30. Rxc8+ {[%emt 0:03:39]} Qxc8 {[%emt 0:00:02]} 31. Qb6 {[%emt 0:01:02]} Ke7 {[%emt 0:05:32]} 32. Qa7+ {[%emt 0:01:00]} Qc7 {[%emt 0:01:03]} 33. Qxa6 {[%emt 0:00:54]} Rc8 {[%emt 0:01:30]} 34. c3 {[%emt 0:00:07]} Rb8 {[%emt 0:03:44]} 35. Rh1 {[%emt 0:02:04]} Qb6 {[%emt 0:03:14]} 36. Rxh7+ {[%emt 0:00:34]} Ke8 {[%emt 0:02:07]} 37. Qxb6 {[%emt 0:00:12]} Rxb6 {[%emt 0:00:03]} 38. Bd4 {[%emt 0:00:31]} Rb8 {[%emt 0:01:05]} 39. Ba7 {[%emt 0:00:41]} Rd8 {[%emt 0:02:14]} 40. Bxb5+ {[%emt 0:00:34]} Kf8 {[%emt 0:00:00]} 41. Bd4 {[%emt 0:31:12]} f4 {[%emt 0:32:11]} 42. Bg7+ {[%emt 0:00:18]} Kf7 {[%emt 0:01:14]} 43. Bh6# {[%emt 0:00:11]} 1-0

[Event "44th Chess Olympiad Women 2022"]
[Site "Chennai"]
[Date "2022.08.09"]
[Round "11.40"]
[White "Mariam, Essa"]
[Black "Onoja, Iyefu Joy"]
[Result "1-0"]
[ECO "C01"]
[WhiteElo "1591"]
[BlackElo "1869"]
[Annotator "NA RC COMBH"]
[PlyCount "53"]
[EventDate "2022.07.29"]
[EventType "team-tourn"]
[EventCountry "IND"]
[SourceTitle "playchess.com"]
[Source "ChessBase"]
[SourceQuality "1"]
[WhiteTeam "United Arab Emirates"]
[BlackTeam "Nigeria"]
[WhiteTeamCountry "UAE"]
[BlackTeamCountry "NGR"]
[TimeControl "40/5400+30:1800+30"]

1. e4 {[%emt 0:00:03]} e6 {[%emt 0:00:16]} 2. d4 {[%emt 0:00:04]} d5 {[%emt 0:00:07]} 3. Nc3 {[%emt 0:00:03]} Bb4 {[%emt 0:00:15]} 4. exd5 {[%emt 0:00:45]} exd5 {[%emt 0:00:09]} 5. Bd3 {[%emt 0:00:05]} Nf6 {[%emt 0:00:30]} 6. Nge2 {[%emt 0:01:32]} c6 {[%emt 0:01:44]} 7. O-O {[%emt 0:02:52]} O-O {[%emt 0:00:22]} 8. a3 {[%emt 0:03:59]} Ba5 {[%emt 0:00:13]} 9. b4 {[%emt 0:00:49]} Bc7 {[%emt 0:00:11]} 10. Bf4 {[%emt 0:00:54]} Bb6 {[%emt 0:05:07]} 11. Na4 {[%emt 0:06:35]} Bg4 {[%emt 0:02:19]} 12. f3 {[%emt 0:09:26]} Be6 {[%emt 0:00:44]} 13. Nxb6 {[%emt 0:00:25]} Qxb6 {[%emt 0:00:56]} 14. c3 {[%emt 0:01:04]} Nbd7 {[%emt 0:02:42]} 15. Qe1 {[%emt 0:02:25]} h6 {[%emt 0:11:40]} 16. Kh1 {[%emt 0:08:47]} Rfe8 {[%emt 0:01:22]} 17. Qd2 {[%emt 0:26:16]} g5 {[%emt 0:01:59]} 18. Be5 {[%emt 0:00:00]} Kg7 {[%emt 0:03:46]} 19. Ng3 {[%emt 0:01:42]} Nxe5 {[%emt 0:03:21]} 20. dxe5 {[%emt 0:00:06]} Ng8 {[%emt 0:00:29]} 21. f4 {[%emt 0:01:55]} gxf4 {[%emt 0:01:28]} 22. Qxf4 {[%emt 0:00:07]} Qc7 {[%emt 0:00:30]} 23. Nh5+ {[%emt 0:03:13]} Kf8 {[%emt 0:00:45]} 24. Bh7 {[%emt 0:01:34]} Ke7 {[%emt 0:02:20]} 25. Qh4+ {[%emt 0:00:10]} f6 {[%emt 0:04:39]} 26. exf6+ {[%emt 0:00:54]} Kf8 {[%emt 0:00:56]} 27. Ng7 {[%emt 0:00:25]} 1-0

[Event "44th Chess Olympiad Women 2022"]
[Site "Chennai"]
[Date "2022.08.09"]
[Round "11.41"]
[White "Stojkovska, Monika"]
[Black "Sakai, Azumi"]
[Result "1/2-1/2"]
[ECO "C06"]
[WhiteElo "2091"]
[BlackElo "1759"]
[Annotator "NA RC"]
[PlyCount "74"]
[EventDate "2022.07.29"]
[EventType "team-tourn"]
[EventCountry "IND"]
[SourceTitle "playchess.com"]
[Source "ChessBase"]
[SourceQuality "1"]
[WhiteTeam "Macedonia"]
[BlackTeam "Japan"]
[WhiteTeamCountry "MKD"]
[BlackTeamCountry "JPN"]
[TimeControl "40/5400+30:1800+30"]

1. e4 {[%emt 0:00:03]} e6 {[%emt 0:00:11]} 2. d4 {[%emt 0:00:05]} d5 {[%emt 0:00:04]} 3. Nd2 {[%emt 0:00:11]} Nf6 {[%emt 0:00:08]} 4. e5 {[%emt 0:00:09]} Nfd7 {[%emt 0:00:05]} 5. c3 {[%emt 0:00:15]} c5 {[%emt 0:00:17]} 6. Bd3 {[%emt 0:00:06]} Nc6 {[%emt 0:00:09]} 7. Ne2 {[%emt 0:00:25]} cxd4 {[%emt 0:00:23]} 8. cxd4 {[%emt 0:00:05]} f6 {[%emt 0:00:13]} 9. exf6 {[%emt 0:00:27]} Nxf6 {[%emt 0:00:17]} 10. Nf3 {[%emt 0:00:21]} Bd6 {[%emt 0:00:20]} 11. O-O {[%emt 0:00:20]} Qc7 {[%emt 0:00:12]} 12. g3 {[%emt 0:01:23]} O-O {[%emt 0:00:22]} 13. Bf4 {[%emt 0:00:33]} Ng4 {[%emt 0:00:46]} 14. Rc1 {[%emt 0:17:41]} e5 {[%emt 0:05:14]} 15. dxe5 {[%emt 0:02:15]} Ngxe5 {[%emt 0:00:29]} 16. Nxe5 {[%emt 0:13:45]} Bxe5 {[%emt 0:00:38]} 17. Bb5 {[%emt 0:00:55]} Qd6 {[%emt 0:06:40]} 18. Bxc6 {[%emt 0:12:21]} bxc6 {[%emt 0:00:43]} 19. Bxe5 {[%emt 0:01:47]} Qxe5 {[%emt 0:00:30]} 20. Nd4 {[%emt 0:03:13]} Bh3 {[%emt 0:02:10]} 21. Re1 {[%emt 0:04:51]} Qf6 {[%emt 0:01:10]} 22. f3 {[%emt 0:06:20]} Rac8 {[%emt 0:14:57]} 23. b4 {[%emt 0:08:29]} h5 {[%emt 0:09:07]} 24. Qd2 {[%emt 0:03:22]} Bd7 {[%emt 0:08:35]} 25. Kg2 {[%emt 0:07:56]} Rf7 {[%emt 0:07:32]} 26. Rc3 {[%emt 0:01:00]} Qd6 {[%emt 0:08:34]} 27. Rc5 {[%emt 0:01:48]} h4 {[%emt 0:05:11]} 28. a3 {[%emt 0:04:33]} Qf8 {[%emt 0:03:28]} 29. Qg5 {[%emt 0:02:00]} h3+ {[%emt 0:01:04]} 30. Kf2 {[%emt 0:00:43]} Re8 {[%emt 0:04:35]} 31. Rcc1 {[%emt 0:02:18]} a5 {[%emt 0:05:46]} 32. Rxe8 {[%emt 0:01:52]} Bxe8 {[%emt 0:01:57]} 33. Rc5 {[%emt 0:00:04]} axb4 {[%emt 0:00:47]} 34. axb4 {[%emt 0:00:00]} Bd7 {[%emt 0:01:17]} 35. Qe5 {[%emt 0:04:16]} Re7 {[%emt 0:02:06]} 36. Qf4 {[%emt 0:00:01]} Rf7 {[%emt 0:00:25]} 37. Qe5 {[%emt 0:00:06]} Re7 {[%emt 0:00:25]} 1/2-1/2

[Event "44th Chess Olympiad Women 2022"]
[Site "Chennai"]
[Date "2022.08.09"]
[Round "11.41"]
[White "Nikolovska, Dragana"]
[Black "Misawa, Yuki"]
[Result "1-0"]
[ECO "B13"]
[WhiteElo "1876"]
[BlackElo "1587"]
[Annotator "NA RC COMBH"]
[PlyCount "65"]
[EventDate "2022.07.29"]
[EventType "team-tourn"]
[EventCountry "IND"]
[SourceTitle "playchess.com"]
[Source "ChessBase"]
[SourceQuality "1"]
[WhiteTeam "Macedonia"]
[BlackTeam "Japan"]
[WhiteTeamCountry "MKD"]
[BlackTeamCountry "JPN"]
[TimeControl "40/5400+30:1800+30"]

1. e4 {[%emt 0:00:04]} c6 {[%emt 0:00:04]} 2. d4 {[%emt 0:00:07]} d5 {[%emt 0:00:07]} 3. exd5 {[%emt 0:00:14]} cxd5 {[%emt 0:00:06]} 4. Bd3 {[%emt 0:00:08]} Nc6 {[%emt 0:00:08]} 5. c3 {[%emt 0:00:18]} Nf6 {[%emt 0:00:11]} 6. h3 {[%emt 0:00:18]} Ne4 {[%emt 0:00:14]} 7. Qf3 {[%emt 0:07:37]} Nf6 {[%emt 0:10:21]} 8. Bf4 {[%emt 0:07:14]} e6 {[%emt 0:03:04]} 9. Nd2 {[%emt 0:11:22]} Bd6 {[%emt 0:08:13]} 10. Ne2 {[%emt 0:03:49]} Bxf4 {[%emt 0:04:37]} 11. Qxf4 {[%emt 0:00:54]} Ne7 {[%emt 0:06:31]} 12. Nf3 {[%emt 0:04:33]} Ng6 {[%emt 0:06:12]} 13. Qe3 {[%emt 0:15:10]} Bd7 {[%emt 0:02:59]} 14. O-O {[%emt 0:03:49]} Qb6 {[%emt 0:02:21]} 15. a4 {[%emt 0:03:52]} O-O {[%emt 0:07:53]} 16. Rfe1 {[%emt 0:02:35]} Rfe8 {[%emt 0:01:54]} 17. Ne5 {[%emt 0:00:32]} Bc6 {[%emt 0:02:16]} 18. Qg3 {[%emt 0:03:58]} Nxe5 {[%emt 0:07:55]} 19. dxe5 {[%emt 0:03:00]} Ne4 {[%emt 0:04:01]} 20. Bxe4 {[%emt 0:02:18]} dxe4 {[%emt 0:00:31]} 21. Nf4 {[%emt 0:01:34]} g6 {[%emt 0:04:41]} 22. Nh5 {[%emt 0:02:01]} Kf8 {[%emt 0:07:31]} 23. Nf6 {[%emt 0:00:44]} h5 {[%emt 0:03:06]} 24. Nxe8 {[%emt 0:08:14]} Rxe8 {[%emt 0:00:41]} 25. b4 {[%emt 0:00:17]} Bd5 {[%emt 0:01:58]} 26. Qg5 {[%emt 0:00:29]} Qc7 {[%emt 0:01:54]} 27. Re3 {[%emt 0:00:28]} Qc4 {[%emt 0:01:33]} 28. Rg3 {[%emt 0:00:33]} Qe2 {[%emt 0:02:06]} 29. Qf6 {[%emt 0:01:44]} a6 {[%emt 0:02:18]} 30. Rxg6 {[%emt 0:00:53]} e3 {[%emt 0:01:10]} 31. fxe3 {[%emt 0:05:59]} Qxe3+ {[%emt 0:01:07]} 32. Kh2 {[%emt 0:00:26]} Qe2 {[%emt 0:04:47]} 33. Rf1 {[%emt 0:00:50]} 1-0

[Event "44th Chess Olympiad Women 2022"]
[Site "Chennai"]
[Date "2022.08.09"]
[Round "11.41"]
[White "Kojima, Natsumi"]
[Black "Manova, Ivana"]
[Result "0-1"]
[ECO "B23"]
[WhiteElo "1782"]
[BlackElo "1849"]
[Annotator "NA RC COMBH"]
[PlyCount "86"]
[EventDate "2022.07.29"]
[EventType "team-tourn"]
[EventCountry "IND"]
[SourceTitle "playchess.com"]
[Source "ChessBase"]
[SourceQuality "1"]
[WhiteTeam "Japan"]
[BlackTeam "Macedonia"]
[WhiteTeamCountry "JPN"]
[BlackTeamCountry "MKD"]
[TimeControl "40/5400+30:1800+30"]

1. e4 {[%emt 0:00:02]} c5 {[%emt 0:00:12]} 2. Nc3 {[%emt 0:00:07]} Nc6 {[%emt 0:00:07]} 3. f4 {[%emt 0:00:21]} g6 {[%emt 0:00:16]} 4. Nf3 {[%emt 0:00:36]} Bg7 {[%emt 0:00:22]} 5. Bc4 {[%emt 0:01:23]} e6 {[%emt 0:00:26]} 6. d3 {[%emt 0:03:22]} Nge7 {[%emt 0:00:25]} 7. O-O {[%emt 0:02:00]} d5 {[%emt 0:02:36]} 8. Bb3 {[%emt 0:02:07]} O-O {[%emt 0:01:29]} 9. Qe1 {[%emt 0:06:15]} Nd4 {[%emt 0:06:25]} 10. e5 {[%emt 0:15:12]} Nef5 {[%emt 0:07:20]} 11. g4 {[%emt 0:05:26]} Nxf3+ {[%emt 0:01:55]} 12. Rxf3 {[%emt 0:00:08]} Nd4 {[%emt 0:00:24]} 13. Rh3 {[%emt 0:00:37]} h6 {[%emt 0:03:58]} 14. Ne2 {[%emt 0:01:19]} Nxe2+ {[%emt 0:06:22]} 15. Qxe2 {[%emt 0:00:17]} b5 {[%emt 0:07:35]} 16. c3 {[%emt 0:03:23]} d4 {[%emt 0:03:24]} 17. cxd4 {[%emt 0:06:25]} cxd4 {[%emt 0:00:35]} 18. Bd2 {[%emt 0:03:00]} Qb6 {[%emt 0:07:32]} 19. Bd1 {[%emt 0:02:14]} Bb7 {[%emt 0:03:16]} 20. Qf2 {[%emt 0:02:13]} f6 {[%emt 0:09:01]} 21. exf6 {[%emt 0:07:05]} Rxf6 {[%emt 0:00:42]} 22. Bf3 {[%emt 0:01:55]} Rf7 {[%emt 0:07:58]} 23. Rc1 {[%emt 0:13:55]} e5 {[%emt 0:08:00]} 24. Bxb7 {[%emt 0:05:23]} Qxb7 {[%emt 0:00:37]} 25. Qf3 {[%emt 0:01:07]} Qxf3 {[%emt 0:10:43]} 26. Rxf3 {[%emt 0:00:07]} Re8 {[%emt 0:00:55]} 27. Kg2 {[%emt 0:05:03]} exf4 {[%emt 0:00:48]} 28. Bxf4 {[%emt 0:06:59]} Re2+ {[%emt 0:01:30]} 29. Kg3 {[%emt 0:00:31]} Rxb2 {[%emt 0:00:51]} 30. Rc6 {[%emt 0:05:17]} g5 {[%emt 0:01:03]} 31. Bb8 {[%emt 0:00:46]} Rxf3+ {[%emt 0:05:03]} 32. Kxf3 {[%emt 0:00:02]} Rxa2 {[%emt 0:01:10]} 33. Rc7 {[%emt 0:01:22]} a5 {[%emt 0:02:31]} 34. Ke4 {[%emt 0:00:36]} Re2+ {[%emt 0:00:32]} 35. Kd5 {[%emt 0:00:45]} Re5+ {[%emt 0:01:11]} 36. Kd6 {[%emt 0:00:12]} Re8 {[%emt 0:00:13]} 37. Ba7 {[%emt 0:00:28]} Be5+ {[%emt 0:00:47]} 38. Kd7 {[%emt 0:00:20]} Bxc7 {[%emt 0:00:37]} 39. Kxe8 {[%emt 0:00:05]} Be5 {[%emt 0:00:25]} 40. h3 {[%emt 0:00:08]} b4 {[%emt 0:00:26]} 41. Bc5 {[%emt 0:30:56]} b3 {[%emt 0:01:14]} 42. Ba3 {[%emt 0:00:00]} Bd6 {[%emt 0:00:21]} 43. Bb2 {[%emt 0:00:00]} a4 {[%emt 0:04:27]} 0-1

[Event "44th Chess Olympiad Women 2022"]
[Site "Chennai"]
[Date "2022.08.09"]
[Round "11.41"]
[White "Mitsuyama, Rikka"]
[Black "Eftovska, Lea"]
[Result "0-1"]
[ECO "E94"]
[WhiteElo "1157"]
[BlackElo "1634"]
[Annotator "NA COMBH"]
[PlyCount "118"]
[EventDate "2022.07.29"]
[EventType "team-tourn"]
[EventCountry "IND"]
[SourceTitle "playchess.com"]
[Source "ChessBase"]
[SourceQuality "1"]
[WhiteTeam "Japan"]
[BlackTeam "Macedonia"]
[WhiteTeamCountry "JPN"]
[BlackTeamCountry "MKD"]
[TimeControl "40/5400+30:1800+30"]

1. d4 {[%emt 0:00:07]} Nf6 {[%emt 0:00:06]} 2. c4 {[%emt 0:00:25]} g6 {[%emt 0:00:04]} 3. Nc3 {[%emt 0:00:14]} d6 {[%emt 0:00:11]} 4. e4 {[%emt 0:00:55]} Bg7 {[%emt 0:00:07]} 5. Nf3 {[%emt 0:00:09]} O-O {[%emt 0:00:09]} 6. Be2 {[%emt 0:00:29]} Nbd7 {[%emt 0:00:07]} 7. O-O {[%emt 0:00:57]} e5 {[%emt 0:00:46]} 8. d5 {[%emt 0:05:57]} Nc5 {[%emt 0:01:20]} 9. Qc2 {[%emt 0:01:30]} a5 {[%emt 0:00:46]} 10. b3 {[%emt 0:11:40]} b6 {[%emt 0:21:25]} 11. a3 {[%emt 0:07:07]} Nh5 {[%emt 0:06:12]} 12. Nd2 {[%emt 0:09:41]} Nf4 {[%emt 0:02:10]} 13. Bf3 {[%emt 0:17:18]} Qg5 {[%emt 0:09:56]} 14. Kh1 {[%emt 0:06:27]} h5 {[%emt 0:10:07]} 15. g3 {[%emt 0:10:53]} Nh3 {[%emt 0:09:08]} 16. Bg2 {[%emt 0:01:28]} Qe7 {[%emt 0:07:29]} 17. Nf3 {[%emt 0:02:59]} f6 {[%emt 0:04:20]} 18. Be3 {[%emt 0:04:51]} Ng5 {[%emt 0:06:30]} 19. Nh4 {[%emt 0:03:24]} Kh7 {[%emt 0:06:52]} 20. f4 {[%emt 0:06:09]} Nf7 {[%emt 0:00:43]} 21. f5 {[%emt 0:00:53]} Nh8 {[%emt 0:07:32]} 22. b4 {[%emt 0:01:28]} Nb7 {[%emt 0:01:29]} 23. Qe2 {[%emt 0:00:17]} gxf5 {[%emt 0:03:11]} 24. Qxh5+ {[%emt 0:00:23]} Kg8 {[%emt 0:00:12]} 25. exf5 {[%emt 0:04:06]} Qf7 {[%emt 0:00:20]} 26. Ng6 {[%emt 0:00:14]} Re8 {[%emt 0:00:23]} 27. Ne4 {[%emt 0:01:09]} Bxf5 {[%emt 0:00:29]} 28. Qxf5 {[%emt 0:00:58]} Qxg6 {[%emt 0:00:19]} 29. Qxg6 {[%emt 0:01:06]} Nxg6 {[%emt 0:00:05]} 30. Nxf6+ {[%emt 0:00:07]} Bxf6 {[%emt 0:00:24]} 31. Rxf6 {[%emt 0:00:13]} Kg7 {[%emt 0:01:13]} 32. Raf1 {[%emt 0:00:21]} Rf8 {[%emt 0:01:21]} 33. Bg5 {[%emt 0:01:35]} axb4 {[%emt 0:00:21]} 34. axb4 {[%emt 0:00:26]} Ra4 {[%emt 0:00:43]} 35. Rxf8 {[%emt 0:00:55]} Nxf8 {[%emt 0:00:07]} 36. Bd2 {[%emt 0:00:53]} Ra2 {[%emt 0:00:17]} 37. Rf2 {[%emt 0:00:43]} Ra1+ {[%emt 0:00:37]} 38. Bf1 {[%emt 0:00:21]} Nh7 {[%emt 0:00:38]} 39. h4 {[%emt 0:00:17]} Nf6 {[%emt 0:00:28]} 40. Bh6+ {[%emt 0:00:24]} Kg6 {[%emt 0:00:39]} 41. Bf8 {[%emt 0:06:33]} Ne4 {[%emt 0:02:40]} 42. h5+ {[%emt 0:08:48]} Kxh5 {[%emt 0:01:14]} 43. Rh2+ {[%emt 0:06:36]} Kg4 {[%emt 0:01:29]} 44. Kg2 {[%emt 0:04:55]} Nxg3 {[%emt 0:08:27]} 45. Bd3 {[%emt 0:02:39]} Ra2+ {[%emt 0:02:22]} 46. Kg1 {[%emt 0:00:07]} Rxh2 {[%emt 0:00:56]} 47. Kxh2 {[%emt 0:00:08]} e4 {[%emt 0:00:23]} 48. Bc2 {[%emt 0:00:40]} Kf3 {[%emt 0:01:29]} 49. Be7 {[%emt 0:03:09]} e3 {[%emt 0:08:13]} 50. Bh4 {[%emt 0:00:43]} Nf1+ {[%emt 0:01:26]} 51. Kg1 {[%emt 0:00:14]} e2 {[%emt 0:03:23]} 52. Bf2 {[%emt 0:00:49]} Nd8 {[%emt 0:02:16]} 53. Bg6 {[%emt 0:00:22]} Ng3 {[%emt 0:02:06]} 54. Bd3 {[%emt 0:00:17]} Ne4 {[%emt 0:01:01]} 55. Be1 {[%emt 0:01:44]} Nf7 {[%emt 0:00:15]} 56. Bc2 {[%emt 0:00:46]} Ne5 {[%emt 0:00:24]} 57. Bb3 {[%emt 0:00:27]} Nd3 {[%emt 0:00:15]} 58. Bh4 {[%emt 0:00:31]} e1=Q+ {[%emt 0:00:18]} 59. Bxe1 {[%emt 0:00:07]} Nxe1 {[%emt 0:00:11]} 0-1

[Event "44th Chess Olympiad Women 2022"]
[Site "Chennai"]
[Date "2022.08.09"]
[Round "11.42"]
[White "Cooke, Suzie G."]
[Black "Ampaire Shakira"]
[Result "1-0"]
[ECO "D10"]
[WhiteElo "1936"]
[BlackElo "1666"]
[Annotator "TA"]
[PlyCount "65"]
[EventDate "2022.07.29"]
[EventType "team-tourn"]
[EventCountry "IND"]
[SourceTitle "playchess.com"]
[Source "ChessBase"]
[SourceQuality "1"]
[WhiteTeam "Scotland"]
[BlackTeam "Uganda"]
[WhiteTeamCountry "SCO"]
[BlackTeamCountry "UGA"]
[TimeControl "40/5400+30:1800+30"]

{[%evp 9,65,38,38,31,42,45,38,49,65,65,66,40,50,40,32,15,222,240,272,259,242,205,328,332,369,355,375,369,449,443,635,631,620,613,704,574,550,538,817,851,855,852,811,818,805,787,767,724,677,677,1207,1209,1209,570,1210,1201,1191,1163]} 1. d4 {[%emt 0:00:03]} d5 {[%emt 0:00:44]} 2. Bf4 {[%emt 0:00:07]} Nf6 {[%emt 0:01:03]} 3. e3 {[%emt 0:00:09]} Bf5 {[%emt 0:02:31]} 4. c4 {[%emt 0:00:55]} c6 {[%emt 0:03:32]} 5. Nc3 {[%emt 0:04:24]} e6 {[%emt 0:02:40]} 6. Qb3 {[%emt 0:02:49] D10: Slav Defence: 3 cxd5 (without early Nf3) and 3 Nc3.} Qb6 {[%emt 0:00:45]} 7. c5 {[%emt 0:00:24]} Qxb3 {[%emt 0:01:31]} 8. axb3 {[%emt 0:00:03] White is slightly better.} Nbd7 {[%emt 0:00:31]} 9. b4 {[%emt 0:00:29] White is more active.} Be7 {[%emt 0:04:17]} 10. b5 $1 {[%emt 0:07:22] The main line 10.b5 scores better than 10.h3.} O-O {[%emt 0:00:59][%cal Oe6e5]} 11. bxc6 {[%emt 0:04:30]} bxc6 {[%emt 0:00:19][%cal Oe6e5]} 12. Ba6 {[%emt 0:05:21] Bb7 is the strong threat.} Nh5 $2 {[%emt 0:01:10] [#] Black cannot hold the game after this.} (12... e5 $1 $11 13. Bg3 Rab8) 13. Bc7 $1 $18 {[%emt 0:01:19] [#]} Rab8 $146 {[%emt 0:15:17]} ({Predecessor:} 13... e5 14. Nf3 Be4 15. Nxe4 dxe4 16. Nxe5 Nxe5 17. Bxe5 Nf6 18. Bb7 Nd7 19. Bg3 a5 20. Bxc6 Ra7 21. b4 Rc8 22. Bxe4 {1-0 (22) Babarykin,S (2387)-Bratu,G (1799) Calimanesti 2019}) 14. Bxb8 {[%emt 0:03:01]} Rxb8 {[%emt 0:05:48]} 15. Ra2 {[%emt 0:01:26]} Bc2 {[%emt 0:00:45]} (15... Nhf6 $142 16. Be2 Rb7) 16. Nf3 {[%emt 0:01:04]} Bb3 {[%emt 0:02:35]} 17. Ra1 {[%emt 0:01:03]} Bc2 {[%emt 0:00:12]} 18. O-O {[%emt 0:01:38]} ({But not} 18. Be2 Rb7 19. b4 Rxb4 20. Rxa7 Nhf6 $18) 18... Rxb2 {[%emt 0:00:56]} 19. Bc8 {[%emt 0:01:00][%csl LRa7,LRd7] White is clearly winning.} Nb8 {[%emt 0:29:52]} (19... Nxc5 $142 20. dxc5 Bxc5) 20. Rxa7 {[%emt 0:01:50]} Kf8 {[%emt 0:08:01]} 21. Ne5 {[%emt 0:02:47]} Nf6 {[%emt 0:03:18]} 22. Rb7 {[%emt 0:01:40]} Rxb7 {[%emt 0:00:56]} 23. Bxb7 {[%emt 0:00:04]} Bd8 {[%emt 0:00:51]} 24. Ra1 {[%emt 0:00:46]} Bc7 {[%emt 0:00:43]} 25. Nxc6 {[%emt 0:01:40]} Nxc6 {[%emt 0:02:33]} 26. Bxc6 {[%emt 0:00:08]} Bd3 {[%emt 0:01:31]} 27. Ra7 {[%emt 0:03:13]} Bd8 {[%emt 0:00:41]} 28. Bb5 {[%emt 0:02:25]} Bxb5 {[%emt 0:00:55]} 29. Nxb5 {[%emt 0:00:04] [#] aiming for Nd6.} Ke8 {[%emt 0:01:56]} 30. Nd6+ {[%emt 0:00:51]} Kf8 {[%emt 0:00:26]} 31. Rxf7+ {[%emt 0:00:10]} Kg8 {[%emt 0:00:02]} 32. Ra7 {[%emt 0:00:12]} Kf8 {[%emt 0:00:13]} 33. c6 {[%emt 0:00:20] Weighted Error Value: White=0.12 (very precise) /Black=0.58} 1-0

[Event "44th Chess Olympiad Women 2022"]
[Site "Chennai"]
[Date "2022.08.09"]
[Round "11.42"]
[White "Hughes, Rhian"]
[Black "Kawuma Patricia"]
[Result "1/2-1/2"]
[ECO "A29"]
[WhiteElo "1843"]
[BlackElo "1653"]
[Annotator "NA RC COMBH"]
[PlyCount "71"]
[EventDate "2022.07.29"]
[EventType "team-tourn"]
[EventCountry "IND"]
[SourceTitle "playchess.com"]
[Source "ChessBase"]
[SourceQuality "1"]
[WhiteTeam "Scotland"]
[BlackTeam "Uganda"]
[WhiteTeamCountry "SCO"]
[BlackTeamCountry "UGA"]
[TimeControl "40/5400+30:1800+30"]

1. c4 {[%emt 0:00:02]} e5 {[%emt 0:00:07]} 2. Nc3 {[%emt 0:00:08]} Nf6 {[%emt 0:00:10]} 3. g3 {[%emt 0:00:14]} d5 {[%emt 0:00:36]} 4. cxd5 {[%emt 0:00:58]} Nxd5 {[%emt 0:00:09]} 5. Bg2 {[%emt 0:00:55]} Nb6 {[%emt 0:00:14]} 6. Nf3 {[%emt 0:05:38]} Nc6 {[%emt 0:00:33]} 7. O-O {[%emt 0:01:05]} Be7 {[%emt 0:00:23]} 8. d3 {[%emt 0:05:20]} O-O {[%emt 0:04:26]} 9. b3 {[%emt 0:02:08]} Be6 {[%emt 0:03:05]} 10. Bb2 {[%emt 0:02:46]} f6 {[%emt 0:02:20]} 11. Rc1 {[%emt 0:03:20]} Qd7 {[%emt 0:00:13]} 12. Ne4 {[%emt 0:07:58]} Bh3 {[%emt 0:05:54]} 13. Nc5 {[%emt 0:04:16]} Bxc5 {[%emt 0:01:49]} 14. Rxc5 {[%emt 0:00:44]} Bxg2 {[%emt 0:00:24]} 15. Kxg2 {[%emt 0:00:14]} Nd8 {[%emt 0:00:40]} 16. Rc2 {[%emt 0:07:40]} Ne6 {[%emt 0:01:40]} 17. Rd2 {[%emt 0:09:51]} Nd5 {[%emt 0:03:12]} 18. e4 {[%emt 0:04:05]} Ne7 {[%emt 0:01:07]} 19. d4 {[%emt 0:01:34]} exd4 {[%emt 0:00:24]} 20. Nxd4 {[%emt 0:03:15]} Ng5 {[%emt 0:05:28]} 21. Nf5 {[%emt 0:07:05]} Qe6 {[%emt 0:00:31]} 22. Nxe7+ {[%emt 0:02:49]} Qxe7 {[%emt 0:00:15]} 23. f3 {[%emt 0:01:52]} Rad8 {[%emt 0:00:50]} 24. Rff2 {[%emt 0:01:33]} Nf7 {[%emt 0:00:50]} 25. Rxd8 {[%emt 0:04:31]} Rxd8 {[%emt 0:00:08]} 26. Rd2 {[%emt 0:00:08]} Rxd2+ {[%emt 0:00:41]} 27. Qxd2 {[%emt 0:00:08]} h6 {[%emt 0:00:28]} 28. Qd4 {[%emt 0:01:52]} c5 {[%emt 0:01:07]} 29. Qd5 {[%emt 0:01:01]} Kh7 {[%emt 0:01:12]} 30. f4 {[%emt 0:01:58]} b6 {[%emt 0:01:37]} 31. e5 {[%emt 0:03:37]} fxe5 {[%emt 0:00:21]} 32. fxe5 {[%emt 0:03:27]} Ng5 {[%emt 0:00:20]} 33. Qd3+ {[%emt 0:01:36]} Kh8 {[%emt 0:01:01]} 34. Qd6 Qb7+ 35. Kf2 {[%emt 0:00:06]} Qf3+ {[%emt 0:02:09]} 36. Ke1 1/2-1/2